fUSD/lending_fUSD_20240429
["ID","MTS","AMOUNT","RATE_DAILY","PERIOD"]
[324924730,1714423833660,-500.0,0.00012798,2]
[324924731,1714423833669,-500.0,0.00012798,2]
[324924732,1714423833678,-282.42919858,0.00012798,2]
[324924733,1714423833691,-217.57080142,0.00012798,2]
[324924734,1714423833701,-500.0,0.00012798,2]
[324924735,1714423833710,-500.0,0.00012798,2]
[324924736,1714423833719,-484.12919904,0.00012798,2]
[324924737,1714423837362,518.96,9.922e-05,2]
[324924907,1714423840213,-518.96,0.00012186,2]
[324924909,1714423840223,-150.0,0.00012725,2]
[324924911,1714423840232,-150.0,0.00012733,2]
[324924913,1714423840241,-150.0,0.00012737,2]
[324924915,1714423840251,-150.0,0.00012742,2]
[324924917,1714423840260,-150.0,0.00012753,2]
[324924919,1714423840270,-150.0,0.00012767,2]
[324924921,1714423840280,-150.0,0.0001277,2]
[324924923,1714423840289,-150.0,0.00012781,2]
[324924925,1714423840298,-15.87080096,0.00012798,2]
[324924927,1714423840307,-500.0,0.00012799,2]
[324924929,1714423840318,-500.0,0.00012799,2]
[324924931,1714423840328,-500.0,0.00012799,2]
[324924933,1714423840337,-500.0,0.00012799,2]
[324924935,1714423840346,-500.0,0.00012799,2]
[324924937,1714423840355,-160.92456048,0.00012799,2]
[324925062,1714423842165,-150.0,0.0001273,2]
[324925063,1714423842176,-150.0,0.00012732,2]
[324925064,1714423842186,-150.0,0.00012771,2]
[324925065,1714423842201,-793.44543952,0.00012799,2]
[324925066,1714423842212,-500.0,0.00012799,2]
[324925067,1714423842221,-1888.43,0.00012799,2]
[324925068,1714423842231,-257.79213977,0.00012799,2]
[324925069,1714423842245,-242.20786023,0.00012799,2]
[324925070,1714423842254,-367.79213977,0.00012799,2]
[324925071,1714423842266,-132.20786023,0.00012799,2]
[324925072,1714423842276,-500.0,0.00012799,2]
[324925073,1714423842285,-107.42987909,0.00012799,2]
[324925074,1714423842297,-392.57012091,0.00012799,2]
[324925075,1714423842307,-771.25,0.00012799,2]
[324925076,1714423842317,-508.17,0.00012799,2]
[324925077,1714423842326,-129.46928908,0.00012799,2]
[324925079,1714423843226,-150.0,0.0001278,2]
[324925080,1714423843236,-937.22071092,0.00012799,2]
[324925081,1714423843246,-734.22,0.00012799,2]
[324925082,1714423843256,-246.91835935,0.00012799,2]
[324925083,1714423843283,-599.63164065,0.00012799,2]
[324925084,1714423843292,-500.0,0.00012799,2]
[324925085,1714423843302,-500.0,0.00012799,2]
[324925086,1714423843311,-500.0,0.00012799,2]
[324925087,1714423843321,-693.93,0.00012799,2]
[324925088,1714423843330,-500.0,0.00012799,2]
[324925089,1714423843340,-500.0,0.00012799,2]
[324925090,1714423843350,-500.0,0.00012799,2]
[324925091,1714423843359,-637.96,0.00012799,2]
[324925092,1714423843368,-1430.48,0.00012799,2]
[324925093,1714423843378,-500.0,0.00012799,2]
[324925094,1714423843388,-550.26,0.00012799,2]
[324925096,1714423843397,-500.0,0.00012799,2]
[324925097,1714423843407,-553.94,0.00012799,2]
[324925098,1714423843416,-985.88,0.00012799,2]
[324925099,1714423843425,-500.0,0.00012799,2]
[324925100,1714423843434,-1336.48,0.00012799,2]
[324925101,1714423843446,-1212.97,0.00012799,2]
[324925102,1714423843455,-1704.62,0.00012799,2]
[324925103,1714423843465,-500.0,0.00012799,2]
[324925104,1714423843474,-751.57,0.00012799,2]
[324925105,1714423843483,-1148.2,0.00012799,2]
[324925106,1714423843493,-869.56,0.00012799,2]
[324925107,1714423843503,-1185.12904988,0.00012799,2]
[324925109,1714423843515,-1050.0,0.00012799,2]
[324925111,1714423843528,-325.63095012,0.00012799,2]
[324925112,1714423843538,-118.88643502,0.00012799,2]
[324925115,1714423843550,-1896.37356498,0.00012799,2]
[324925116,1714423843559,-500.0,0.00012799,2]
[324925117,1714423843569,-2733.65,0.00012799,2]
[324925119,1714423843579,-1115.31,0.00012799,2]
[324925120,1714423843588,-500.0,0.00012799,2]
[324925122,1714423843597,-500.0,0.00012799,2]
[324925124,1714423843606,-1169.74,0.00012799,2]
[324925125,1714423843615,-825.52,0.00012799,2]
[324925126,1714423843625,-500.0,0.00012799,2]
[324925127,1714423843635,-915.86,0.00012799,2]
[324925128,1714423843644,-2499.58,0.00012799,2]
[324925129,1714423843654,-696.83,0.00012799,2]
[324925130,1714423843663,-500.0,0.00012799,2]
[324925131,1714423843672,-1075.46,0.00012799,2]
[324925132,1714423843682,-2480.06,0.00012799,2]
[324925133,1714423843694,-2813.64,0.00012799,2]
[324925134,1714423843703,-619.86,0.00012799,2]
[324925135,1714423843712,-1918.66,0.00012799,2]
[324925136,1714423843721,-500.0,0.00012799,2]
[324925137,1714423843730,-500.0,0.00012799,2]
[324925138,1714423843738,-500.0,0.00012799,2]
[324925139,1714423843748,-666.53,0.00012799,2]
[324925140,1714423843757,-500.0,0.00012799,2]
[324925141,1714423843767,-1519.69,0.00012799,2]
[324925142,1714423843777,-500.0,0.00012799,2]
[324925143,1714423843787,-581.26,0.00012799,2]
[324925144,1714423843796,-76456.4714016,0.000128,2]
[324925145,1714423843806,-1000.0,0.000128,2]
[324925146,1714423843816,-223.0,0.000128,2]
[324925147,1714423843826,-352.0,0.000128,2]
[324925148,1714423843835,-150.0,0.00012802,2]
[324925149,1714423843847,-150.0,0.00012805,2]
[324925150,1714423843857,-150.0,0.00012806,2]
[324925151,1714423843867,-150.0,0.00012807,2]
[324925152,1714423843877,-150.0,0.0001281,2]
[324925153,1714423843886,-150.0,0.0001281,2]
[324925154,1714423843897,-150.0,0.00012811,2]
[324925155,1714423843907,-150.0,0.00012814,2]
[324925156,1714423843917,-150.0,0.00012815,2]
[324925157,1714423843928,-150.0,0.00012819,2]
[324925158,1714423843938,-150.0,0.0001282,2]
[324925159,1714423843950,-150.0,0.00012822,2]
[324925160,1714423843959,-150.0,0.00012823,2]
[324925161,1714423843967,-150.0,0.00012823,2]
[324925162,1714423843977,-150.0,0.00012824,2]
[324925163,1714423843986,-150.0,0.00012824,2]
[324925164,1714423843995,-150.0,0.00012824,2]
[324925165,1714423844005,-150.0,0.00012826,2]
[324925166,1714423844016,-150.0,0.00012827,2]
[324925167,1714423844026,-150.0,0.00012834,2]
[324925168,1714423844036,-150.0,0.00012837,2]
[324925169,1714423844045,-150.0,0.00012838,2]
[324925170,1714423844054,-150.0,0.00012838,2]
[324925171,1714423844063,-150.0,0.00012839,2]
[324925172,1714423844074,-150.0,0.0001284,2]
[324925173,1714423844084,-150.0,0.00012841,2]
[324925174,1714423844093,-150.0,0.00012843,2]
[324925175,1714423844102,-1500.0,0.00012845,2]
[324925176,1714423844112,-150.0,0.00012847,2]
[324925177,1714423844121,-549.0,0.00012849,2]
[324925178,1714423844130,-150.0,0.00012849,2]
[324925179,1714423844139,-150.0,0.00012853,2]
[324925180,1714423844148,-150.0,0.00012855,2]
[324925181,1714423844160,-150.0,0.00012856,2]
[324925182,1714423844170,-150.0,0.00012857,2]
[324925183,1714423844180,-150.0,0.00012857,2]
[324925184,1714423844190,-150.0,0.00012858,2]
[324925185,1714423844200,-1019.20801255,0.00012861,2]
[324925186,1714423844209,-150.0,0.00012861,2]
[324925187,1714423844218,-300.0,0.00012862,2]
[324925188,1714423844227,-150.0,0.00012863,2]
[324925189,1714423844237,-150.0,0.00012864,2]
[324925190,1714423844246,-150.0,0.00012865,2]
[324925191,1714423844256,-150.0,0.00012868,2]
[324925192,1714423844267,-251.69476738,0.00012868,2]
[324925193,1714423844276,-150.0,0.00012869,2]
[324925194,1714423844287,-1661.46919,0.0001287,2]
[324925195,1714423844297,-150.0,0.00012872,2]
[324925196,1714423844306,-300.0,0.00012874,2]
[324925197,1714423844316,-150.0,0.00012875,2]
[324925198,1714423844325,-150.0,0.00012879,2]
[324925199,1714423844334,-150.0,0.0001288,2]
[324925200,1714423844345,-150.0,0.00012882,2]
[324925201,1714423844354,-150.0,0.00012883,2]
[324925202,1714423844363,-150.0,0.00012884,2]
[324925203,1714423844373,-150.0,0.00012885,2]
[324925204,1714423844383,-150.0,0.00012885,2]
[324925205,1714423844392,-150.0,0.00012889,2]
[324925206,1714423844402,-500.0,0.0001289,2]
[324925207,1714423844411,-500.0,0.0001289,2]
[324925208,1714423844421,-150.0,0.0001289,2]
[324925209,1714423844431,-699.98,0.0001289,2]
[324925210,1714423844441,-500.0,0.0001289,2]
[324925211,1714423844450,-500.0,0.0001289,2]
[324925212,1714423844459,-632.89,0.0001289,2]
[324925213,1714423844469,-500.0,0.0001289,2]
[324925214,1714423844478,-516.79,0.0001289,2]
[324925215,1714423844487,-846.15,0.0001289,2]
[324925216,1714423844496,-1206.49,0.0001289,2]
[324925217,1714423844506,-1102.78,0.0001289,2]
[324925218,1714423844515,-500.0,0.0001289,2]
[324925219,1714423844524,-500.0,0.0001289,2]
[324925220,1714423844533,-500.0,0.0001289,2]
[324925221,1714423844542,-994.28,0.0001289,2]
[324925222,1714423844553,-500.0,0.0001289,2]
[324925223,1714423844562,-500.0,0.0001289,2]
[324925224,1714423844571,-500.0,0.0001289,2]
[324925225,1714423844580,-1751.01,0.0001289,2]
[324925226,1714423844590,-500.0,0.0001289,2]
[324925227,1714423844599,-543.49,0.0001289,2]
[324925228,1714423844608,-1375.83,0.0001289,2]
[324925229,1714423844618,-889.35,0.0001289,2]
[324925230,1714423844627,-500.0,0.0001289,2]
[324925231,1714423844636,-500.0,0.0001289,2]
[324925232,1714423844645,-500.0,0.0001289,2]
[324925233,1714423844655,-590.45,0.0001289,2]
[324925234,1714423844664,-500.0,0.0001289,2]
[324925235,1714423844673,-674.96,0.0001289,2]
[324925236,1714423844682,-500.0,0.0001289,2]
[324925237,1714423844692,-887.87,0.0001289,2]
[324925238,1714423844701,-500.0,0.0001289,2]
[324925239,1714423844710,-1961.85,0.0001289,2]
[324925240,1714423844719,-2141.27,0.0001289,2]
[324925241,1714423844729,-500.0,0.0001289,2]
[324925242,1714423844738,-500.0,0.0001289,2]
[324925243,1714423844748,-500.0,0.0001289,2]
[324925244,1714423844757,-1013.42,0.0001289,2]
[324925245,1714423844768,-500.0,0.0001289,2]
[324925246,1714423844778,-1126.13,0.0001289,2]
[324925247,1714423844787,-500.0,0.0001289,2]
[324925248,1714423844796,-1278.55,0.0001289,2]
[324925249,1714423844807,-500.0,0.0001289,2]
[324925250,1714423844816,-500.0,0.0001289,2]
[324925251,1714423844826,-150.0,0.00012891,2]
[324925252,1714423844837,-150.0,0.00012894,2]
[324925253,1714423844848,-1000.0,0.00012896,2]
[324925254,1714423844858,-500.0,0.00012896,2]
[324925255,1714423844869,-150.0,0.00012897,2]
[324925256,1714423844879,-7500.0,0.00012899,2]
[324925257,1714423844890,-150.0,0.00012899,2]
[324925258,1714423845101,-10000.0,0.000129,2]
[324925259,1714423845111,-3283.46902381,0.000129,2]
[324925260,1714423845122,-150.0,0.000129,2]
[324925261,1714423845132,-429.93231495,0.000129,2]
[324925262,1714423845141,-1098.68371126,0.000129,2]
[324925263,1714423845151,-532.91297446,0.000129,2]
[324925264,1714423845160,-1500.0,0.00012901,2]
[324925265,1714423845170,-150.0,0.00012903,2]
[324925266,1714423845179,-150.0,0.00012903,2]
[324925267,1714423845188,-150.0,0.00012908,2]
[324925268,1714423845198,-1500.0,0.00012911,2]
[324925269,1714423845207,-150.0,0.00012911,2]
[324925270,1714423845217,-150.0,0.00012912,2]
[324925271,1714423845227,-150.0,0.00012918,2]
[324925272,1714423845237,-150.0,0.00012919,2]
[324925273,1714423845247,-150.0,0.0001292,2]
[324925274,1714423845257,-150.0,0.00012922,2]
[324925275,1714423845268,-150.0,0.00012922,2]
[324925276,1714423845278,-150.0,0.00012923,2]
[324925277,1714423845287,-150.0,0.00012924,2]
[324925278,1714423845296,-150.0,0.00012928,2]
[324925279,1714423845306,-150.0,0.00012929,2]
[324925280,1714423845315,-150.0,0.00012929,2]
[324925281,1714423845325,-150.0,0.00012934,2]
[324925282,1714423845334,-150.0,0.00012934,2]
[324925283,1714423845344,-150.0,0.0001294,2]
[324925284,1714423845353,-150.0,0.00012941,2]
[324925285,1714423845363,-150.0,0.00012942,2]
[324925286,1714423845372,-150.0,0.00012945,2]
[324925287,1714423845382,-150.0,0.00012945,2]
[324925288,1714423845391,-150.0,0.00012946,2]
[324925289,1714423845402,-150.0,0.00012947,2]
[324925290,1714423845411,-150.0,0.00012949,2]
[324925291,1714423845420,-150.0,0.0001295,2]
[324925292,1714423845430,-150.0,0.00012951,2]
[324925293,1714423845439,-150.0,0.00012953,2]
[324925294,1714423845450,-150.0,0.00012955,2]
[324925295,1714423845460,-300.0,0.0001296,2]
[324925296,1714423845470,-150.0,0.0001296,2]
[324925297,1714423845479,-150.0,0.0001296,2]
[324925298,1714423845488,-150.0,0.00012961,2]
[324925299,1714423845497,-150.0,0.00012961,2]
[324925300,1714423845507,-150.0,0.00012967,2]
[324925301,1714423845516,-150.0,0.00012967,2]
[324925302,1714423845524,-150.0,0.00012967,2]
[324925303,1714423845534,-150.0,0.00012968,2]
[324925304,1714423845543,-150.0,0.00012969,2]
[324925305,1714423845553,-150.0,0.00012977,2]
[324925306,1714423845563,-150.0,0.00012978,2]
[324925307,1714423845573,-4583.44785109,0.00012986,2]
[324925308,1714423845582,-150.0,0.00012987,2]
[324925309,1714423845591,-150.0,0.00012987,2]
[324925310,1714423845600,-150.0,0.00012989,2]
[324925311,1714423845610,-204.69428146,0.0001299,2]
[324925312,1714423845619,-150.0,0.0001299,2]
[324925313,1714423845628,-150.0,0.00012991,2]
[324925314,1714423845638,-150.0,0.00012992,2]
[324925315,1714423845647,-150.0,0.00012993,2]
[324925316,1714423845656,-2935.27362657,0.00012998,2]
[324925317,1714423845666,-236.4281505,0.00012998,2]
[324925318,1714423845675,-3000.82967405,0.00012998,2]
[324925319,1714423845685,-317.01746459,0.00012998,2]
[324925320,1714423845696,-162.21460792,0.00012998,2]
[324925321,1714423845705,-3413.36288726,0.00012998,2]
[324925322,1714423845715,-2817.98164795,0.00012998,2]
[324925323,1714423845725,-967.84164303,0.00012998,2]
[324925324,1714423845735,-369.9126805,0.00012998,2]
[324925325,1714423845745,-781.51595373,0.00012998,2]
[324925326,1714423845756,-377.69238003,0.00012998,7]
[324925327,1714423845766,-953.70124616,0.00012999,2]
[324925328,1714423845776,-12616.9131787,0.00012999,2]
[324925329,1714423845787,-20516.11744566,0.00012999,2]
[324925330,1714423845796,-2000.0,0.00012999,2]
[324925331,1714423845805,-150.0,0.00012999,2]
[324925332,1714423845814,-113733.10143262,0.00013,2]
[324925334,1714423846515,-150.0,0.00012726,2]
[324925335,1714423846525,-150.0,0.00012741,2]
[324925336,1714423846534,-109.47761844,0.00012746,2]
[324925337,1714424064975,-1242.67581309,0.00011638,2]
[324925338,1714424065003,-4415.16760854,0.00011639,2]
[324925339,1714424065032,-1777.66560076,0.00011639,2]
[324925340,1714424065062,-545.8933463,0.0001164,2]
[324925341,1714424065089,-524.29702054,0.0001164,2]
[324925342,1714424065115,-277.77,0.00011641,2]
[324925343,1714424065148,-871.15,0.00011812,2]
[324925344,1714424065176,-2334.61,0.00011819,2]
[324925345,1714424065205,-1698.93220585,0.00011819,2]
[324925346,1714424065235,-167.95,0.00011829,2]
[324925347,1714424065265,-165.26,0.00011876,2]
[324925348,1714424065294,-655.69,0.00011876,2]
[324925349,1714424065318,-655.69,0.00011908,2]
[324925350,1714424065343,-655.69,0.00011941,2]
[324925351,1714424065371,-860.88,0.00011959,2]
[324925352,1714424065400,-655.69,0.00011974,2]
[324925353,1714424065425,-655.69,0.00012006,2]
[324925354,1714424071626,9099.8,0.00011762,2]
[324925355,1714424091854,6000.0,0.000251,120]
[324925356,1714424111032,250.0,0.00011749,2]
[324925357,1714424175002,614.77,0.00011738,2]
[324925358,1714424180178,150.0,0.00011738,2]
[324925359,1714424197714,2380.41840492,0.00011832,2]
[324925360,1714424323208,741.2867243,0.00025099,120]
[324925361,1714424337799,616.86,9.796e-05,2]
[324925362,1714424357197,-162.98514866,0.00011622,2]
[324925363,1714424357223,-545.8933463,0.00011722,2]
[324925364,1714424357247,-1242.67581309,0.00011722,2]
[324925365,1714424357272,-250.0,0.00011722,2]
[324925366,1714424357297,-492.39,0.00011723,2]
[324925367,1714424357321,-23890.0,0.00011731,2]
[324925368,1714424357344,-4071.74569195,0.00011832,2]
[324925369,1714424658937,150.0,0.00011578,2]
[324925370,1714424772313,3958.28590313,0.00011578,2]
[324925371,1714424815990,661.75,9.662e-05,2]
[324925375,1714424861592,1472.47323451,9.662e-05,2]
[324925376,1714424879475,1472.47323451,9.662e-05,2]
[324925377,1714424899474,501.58943411,9.662e-05,2]
[324925378,1714424899497,970.8838004,9.662e-05,2]
[324925379,1714424919491,1197.6180751,9.662e-05,2]
[324925393,1714425032209,-565.74280531,0.00011523,2]
[324925394,1714425032219,-703.02102372,0.00011524,2]
[324925395,1714425032267,-539.65478937,0.00011524,2]
[324925396,1714425032276,-193.14,0.00011524,2]
[324925397,1714425032285,-1555.73,0.00011524,2]
[324925398,1714425032294,-545.8933463,0.00011525,2]
[324925399,1714425032303,-696.92,0.00011526,2]
[324925400,1714425032313,-250.0,0.00011537,2]
[324925401,1714425032321,-225.02796263,0.00011548,2]
[324925402,1714425032332,-193.45203737,0.00011548,2]
[324925403,1714425032341,-506.62889355,0.00011578,2]
[324925404,1714425032382,-347.96815075,0.00011578,2]
[324925405,1714425032393,-1700.0,0.00011578,2]
[324925412,1714425038253,-1057.57328384,0.00011578,2]
[324925413,1714425038265,-2534.27766681,0.00011578,2]
[324925414,1714425038280,-412.98097719,0.00011578,2]
[324925415,1714425038292,-982.18900359,0.00011578,2]
[324925416,1714425038315,-390.21121279,0.00011578,2]
[324925417,1714425038326,-3722.87678216,0.00011578,2]
[324925418,1714425038337,-658.16600068,0.00011578,2]
[324925419,1714425038349,-83372.25645839,0.00011578,2]
[324925420,1714425038358,-538.21116998,0.00011648,2]
[324925421,1714425038368,-21390.44415414,0.00011653,2]
[324925422,1714425038382,-400.0,0.00011653,2]
[324925423,1714425038439,-643.69,0.00011653,2]
[324925424,1714425038455,-10510.64443999,0.00011653,2]
[324925425,1714425038467,-3062.04830723,0.00011653,2]
[324925426,1714425038554,-1986.0642,0.00011653,2]
[324925427,1714425038565,-3094.38889864,0.00011653,2]
[324925428,1714425038575,-100.82717739,0.00011719,2]
[324925603,1714425040382,-81.68282261,0.00011719,2]
[324925604,1714425040391,-491.76,0.0001175,2]
[324925606,1714425040402,-491.76,0.00011782,2]
[324925608,1714425040415,-491.76,0.00011814,2]
[324925610,1714425040424,-491.76,0.00011847,2]
[324925612,1714425040433,-491.76,0.00011879,2]
[324925613,1714425040442,-491.76,0.00011911,2]
[324925615,1714425040453,-661.75,0.00011926,2]
[324925617,1714425040463,-491.76,0.00011943,2]
[324925619,1714425040473,-491.76,0.00011975,2]
[324925621,1714425040483,-491.76,0.00012008,2]
[324925622,1714425040492,-491.76,0.0001204,2]
[324925624,1714425040501,-175.58,0.00012062,2]
[324925626,1714425040510,-491.76,0.00012072,2]
[324925628,1714425040522,-600.0,0.000121,4]
[324925630,1714425040531,-491.76,0.00012104,2]
[324925632,1714425040540,-491.76,0.00012137,2]
[324925634,1714425040549,-491.76,0.00012169,2]
[324925635,1714425040559,-1200.0,0.000122,4]
[324925637,1714425040568,-491.76,0.00012201,2]
[324925639,1714425040577,-491.76,0.00012233,2]
[324925641,1714425040587,-491.76,0.00012265,2]
[324925642,1714425040596,-491.76,0.00012298,2]
[324925644,1714425040605,-300.3,0.000123,2]
[324925646,1714425040615,-1800.0,0.000123,4]
[324925648,1714425040624,-542.0,0.00012329,2]
[324925650,1714425040633,-491.76,0.0001233,2]
[324925651,1714425040642,-975.87973664,0.00012348,2]
[324925653,1714425040653,-1132.97605351,0.00012348,2]
[324925655,1714425040662,-491.76,0.00012362,2]
[324925657,1714425040671,-2500.0,0.000124,4]
[324925659,1714425040681,-5298.696,0.0001243,2]
[324925660,1714425040691,-586.364,0.00012464,2]
[324925662,1714425040700,-1741.959,0.00012464,2]
[324925664,1714425040709,-6540.09729539,0.00012497,2]
[324925666,1714425040719,-3100.0,0.000125,4]
[324925668,1714425040728,-1291.3552,0.00012506,2]
[324925669,1714425040738,-210.0999,0.00012599,2]
[324925671,1714425040747,-3964.2352,0.00012599,2]
[324925673,1714425040756,-256.274,0.00012599,2]
[324925675,1714425040766,-600.0,0.000126,4]
[324925677,1714425040775,-1394.0,0.00012606,2]
[324925678,1714425040785,-462.0,0.00012606,2]
[324925680,1714425040794,-970.0,0.00012606,2]
[324925682,1714425040803,-2296.0,0.00012606,2]
[324925684,1714425040812,-541.0,0.00012606,2]
[324925686,1714425040821,-1227.0,0.00012606,2]
[324925687,1714425040830,-1256.0,0.00012606,2]
[324925689,1714425040839,-807.0,0.00012606,2]
[324925691,1714425040848,-308.0,0.00012606,2]
[324925693,1714425040858,-1860.0,0.00012606,2]
[324925694,1714425040867,-437.0,0.00012606,2]
[324925696,1714425040875,-610.0,0.00012606,2]
[324925698,1714425040885,-150.0,0.00012622,2]
[324925700,1714425040894,-150.0,0.00012636,2]
[324925702,1714425040903,-150.0,0.00012639,2]
[324925703,1714425040912,-150.0,0.00012649,2]
[324925705,1714425040921,-150.0,0.00012665,2]
[324925707,1714425040931,-150.0,0.00012671,2]
[324925709,1714425040940,-150.0,0.00012677,2]
[324925711,1714425040949,-150.0,0.00012682,2]
[324925712,1714425040958,-150.0,0.00012686,2]
[324925714,1714425040967,-150.0,0.00012692,2]
[324925716,1714425040977,-150.0,0.00012694,2]
[324925718,1714425040986,-150.0,0.00012694,2]
[324925720,1714425040995,-150.0,0.00012695,2]
[324925721,1714425041004,-150.0,0.00012697,2]
[324925723,1714425041013,-565.8337,0.00012699,2]
[324925725,1714425041022,-2154.2782,0.00012699,2]
[324925727,1714425041031,-500.0,0.000127,2]
[324925729,1714425041041,-600.0,0.000127,4]
[324925731,1714425041051,-150.0,0.00012706,2]
[324925732,1714425041061,-150.0,0.00012706,2]
[324925734,1714425041070,-150.0,0.00012707,2]
[324925736,1714425041080,-150.0,0.00012708,2]
[324925738,1714425041089,-150.0,0.00012711,2]
[324925740,1714425041099,-150.0,0.00012711,2]
[324925741,1714425041108,-150.0,0.00012713,2]
[324925743,1714425041117,-150.0,0.00012715,2]
[324925745,1714425041127,-150.0,0.00012718,2]
[324925747,1714425041135,-150.0,0.00012725,2]
[324925749,1714425041144,-150.0,0.00012729,2]
[324925750,1714425041155,-150.0,0.00012732,2]
[324925752,1714425041164,-150.0,0.00012734,2]
[324925754,1714425041174,-150.0,0.0001274,2]
[324925756,1714425041183,-150.0,0.0001274,2]
[324925758,1714425041192,-150.0,0.0001274,2]
[324925759,1714425041201,-150.0,0.00012742,2]
[324925761,1714425041210,-150.0,0.00012743,2]
[324925763,1714425041220,-150.0,0.00012744,2]
[324925765,1714425041229,-40.52238156,0.00012746,2]
[324925766,1714425041238,-298.84757904,0.00012746,2]
[324925768,1714425041248,-150.0,0.00012748,2]
[324925770,1714425041257,-150.0,0.00012754,2]
[324925772,1714425041266,-150.0,0.00012758,2]
[324925774,1714425041275,-150.0,0.0001276,2]
[324925776,1714425041285,-150.0,0.00012762,2]
[324925777,1714425041294,-150.0,0.00012763,2]
[324925778,1714425041303,-150.0,0.00012768,2]
[324925779,1714425041313,-150.0,0.00012772,2]
[324925780,1714425041322,-150.0,0.00012775,2]
[324925781,1714425041330,-150.0,0.00012778,2]
[324925782,1714425041339,-150.0,0.00012778,2]
[324925783,1714425041348,-150.0,0.00012782,2]
[324925784,1714425041358,-150.0,0.00012785,2]
[324925785,1714425041367,-150.0,0.00012787,2]
[324925786,1714425041376,-150.0,0.00012793,2]
[324925787,1714425041385,-150.0,0.00012797,2]
[324925788,1714425041395,-150.0,0.00012798,2]
[324925789,1714425041408,-150.0,0.00012798,2]
[324925790,1714425041417,-150.0,0.00012798,2]
[324925791,1714425041426,-242.48853934,0.00012799,2]
[324925792,1714425041435,-500.0,0.00012799,2]
[324925793,1714425041446,-600.0,0.000128,4]
[324925795,1714425041455,-150.0,0.00012801,2]
[324925796,1714425041465,-150.0,0.00012803,2]
[324925797,1714425041474,-150.0,0.00012805,2]
[324925800,1714425041487,-150.0,0.00012807,2]
[324925802,1714425041498,-192.9334,0.00012811,2]
[324925804,1714425041507,-150.0,0.00012812,2]
[324925806,1714425041517,-150.0,0.00012814,2]
[324925807,1714425041528,-150.0,0.00012816,2]
[324925810,1714425041537,-150.0,0.00012818,2]
[324925812,1714425041547,-150.0,0.00012818,2]
[324925814,1714425041557,-150.0,0.00012818,2]
[324925816,1714425041567,-150.0,0.0001282,2]
[324925818,1714425041576,-150.0,0.00012829,2]
[324925819,1714425041586,-150.0,0.00012836,2]
[324925822,1714425041596,-150.0,0.00012839,2]
[324925824,1714425041606,-150.0,0.00012839,2]
[324925826,1714425041615,-150.0,0.0001284,2]
[324925828,1714425041625,-150.0,0.0001284,2]
[324925830,1714425041634,-150.0,0.00012847,2]
[324925832,1714425041644,-150.0,0.00012848,2]
[324925834,1714425041653,-150.0,0.00012849,2]
[324925836,1714425041663,-150.0,0.00012853,2]
[324925838,1714425041672,-150.0,0.00012857,2]
[324925840,1714425041681,-150.0,0.00012858,2]
[324925842,1714425041691,-150.0,0.00012861,2]
[324925844,1714425041701,-150.0,0.00012865,2]
[324925846,1714425041711,-21267.88715371,0.00012868,2]